[Event "ISR-chT U14 2018"]
[Site "Nir HaEmek"]
[Date "2018.08.13"]
[Round "4"]
[White "Vagman, Roy"]
[Black "Neeman, Gal"]
[Result "1-0"]
[ECO "B20"]
[WhiteElo "1952"]
[BlackElo "1767"]
[Annotator "NA"]
[PlyCount "101"]
[EventDate "2018.08.12"]
[EventType "team-tourn"]
[EventCountry "ISR"]
[SourceTitle "playchess.com"]
[Source "ChessBase"]
[SourceQuality "1"]
[TimeControl "3060+10"]

1. e4 {[%emt 0:01:03]} c5 {[%emt 0:00:59]} 2. Ne2 {[%emt 0:00:16]} e6 {[%emt 0:00:12]} 3. g3 {[%emt 0:00:25]} Nc6 {[%emt 0:00:24]} 4. Bg2 {[%emt 0:00:21]} Nf6 {[%emt 0:00:22]} 5. d3 {[%emt 0:01:26]} d6 {[%emt 0:00:20]} 6. O-O {[%emt 0:00:26]} Be7 {[%emt 0:00:19]} 7. h3 {[%emt 0:00:25]} Bd7 {[%emt 0:01:51]} 8. Kh2 {[%emt 0:01:06]} Qc7 {[%emt 0:02:33]} 9. a4 {[%emt 0:01:05]} h6 {[%emt 0:02:28]} 10. Na3 {[%emt 0:01:59]} O-O {[%emt 0:04:51]} 11. f4 {[%emt 0:02:29]} Nh7 {[%emt 0:04:32]} 12. Nc4 {[%emt 0:04:22]} a6 {[%emt 0:01:23]} 13. Bd2 {[%emt 0:06:14]} b5 {[%emt 0:04:17]} 14. axb5 {[%emt 0:00:41]} axb5 {[%emt 0:00:23]} 15. Rxa8 {[%emt 0:00:19]} Rxa8 {[%emt 0:00:09]} 16. Ne3 {[%emt 0:00:40]} Bf6 {[%emt 0:02:04]} 17. Bc3 {[%emt 0:01:16]} Bxc3 {[%emt 0:02:15]} 18. Nxc3 {[%emt 0:00:59]} Rb8 {[%emt 0:00:53]} 19. f5 {[%emt 0:01:30]} Ne5 {[%emt 0:03:51]} 20. fxe6 {[%emt 0:01:57]} fxe6 {[%emt 0:00:33]} 21. Ng4 {[%emt 0:03:26]} Ng6 {[%emt 0:12:31]} 22. h4 {[%emt 0:02:03]} b4 {[%emt 0:01:37]} 23. Ne2 {[%emt 0:03:27]} e5 {[%emt 0:01:28]} 24. Ng1 {[%emt 0:01:07]} Qd8 {[%emt 0:02:32]} 25. Bh3 {[%emt 0:01:53]} h5 {[%emt 0:00:47]} 26. Ne3 {[%emt 0:00:20]} Bxh3 {[%emt 0:00:08]} 27. Nxh3 {[%emt 0:00:08]} Nf6 {[%emt 0:00:06]} 28. Ng5 {[%emt 0:00:16]} Qd7 {[%emt 0:01:30]} 29. Rf5 {[%emt 0:02:08]} Rf8 {[%emt 0:00:13]} 30. Qa1 {[%emt 0:04:33]} Ne7 {[%emt 0:00:12]} 31. Rf2 {[%emt 0:03:06]} Kh8 {[%emt 0:00:12]} 32. Qd1 {[%emt 0:01:21]} Kg8 {[%emt 0:00:12]} 33. Kg2 {[%emt 0:00:36]} Ng6 {[%emt 0:00:04]} 34. Nf5 {[%emt 0:00:22]} Ng4 {[%emt 0:00:08]} 35. Rf3 {[%emt 0:00:05]} d5 {[%emt 0:00:15]} 36. Qe2 {[%emt 0:01:18]} dxe4 37. dxe4 {[%emt 0:00:02]} Rd8 {[%emt 0:00:14]} 38. Qc4+ {[%emt 0:00:03]} Kh8 {[%emt 0:00:16]} 39. Nf7+ {[%emt 0:00:30]} Kh7 {[%emt 0:00:01]} 40. Ng5+ {[%emt 0:00:01]} Kh8 {[%emt 0:00:00]} 41. Rd3 {[%emt 0:00:22]} Qe8 {[%emt 0:00:29]} 42. Nf7+ {[%emt 0:00:04]} Kh7 {[%emt 0:00:08]} 43. Rxd8 {[%emt 0:00:06]} Qc6 {[%emt 0:00:12]} 44. Rh8+ {[%emt 0:00:02]} Nxh8 {[%emt 0:00:02]} 45. Ng5+ {[%emt 0:00:03]} Kg6 {[%emt 0:00:02]} 46. Ne7+ {[%emt 0:00:04]} Kh6 {[%emt 0:00:05]} 47. Nf5+ {[%emt 0:00:34]} Kg6 {[%emt 0:00:03]} 48. Qg8 {[%emt 0:00:10]} Qd7 {[%emt 0:00:38]} 49. Ne7+ {[%emt 0:00:38]} Qxe7 {[%emt 0:00:05]} 50. Qh7+ {[%emt 0:00:01]} Kf6 {[%emt 0:00:04]} 51. Qf5# {[%emt 0:00:02]} 1-0

[Event "ISR-chT U14 2018"]
[Site "Nir HaEmek"]
[Date "2018.08.13"]
[Round "4"]
[White "Mizrahi, Ido"]
[Black "Zemach, Nadav"]
[Result "1/2-1/2"]
[ECO "D36"]
[WhiteElo "1943"]
[BlackElo "1901"]
[Annotator "NA"]
[PlyCount "41"]
[EventDate "2018.08.12"]
[EventType "team-tourn"]
[EventCountry "ISR"]
[SourceTitle "playchess.com"]
[Source "ChessBase"]
[SourceQuality "1"]
[TimeControl "3060+10"]

1. c4 {[%emt 0:00:54]} Nf6 {[%emt 0:01:09]} 2. Nc3 {[%emt 0:00:24]} e6 {[%emt 0:01:13]} 3. d4 {[%emt 0:01:08]} d5 {[%emt 0:00:04]} 4. cxd5 {[%emt 0:00:08]} exd5 {[%emt 0:00:05]} 5. Bg5 {[%emt 0:00:27]} c6 {[%emt 0:00:14]} 6. e3 {[%emt 0:00:06]} Be7 {[%emt 0:00:50]} 7. Qc2 {[%emt 0:00:38]} Nbd7 {[%emt 0:01:08]} 8. Bd3 {[%emt 0:00:22]} O-O {[%emt 0:01:11]} 9. Nge2 {[%emt 0:00:16]} h6 {[%emt 0:00:14]} 10. Bh4 {[%emt 0:00:10]} Re8 {[%emt 0:00:27]} 11. O-O {[%emt 0:00:24]} Ne4 {[%emt 0:01:56]} 12. Bxe7 {[%emt 0:00:34]} Qxe7 {[%emt 0:00:42]} 13. Rae1 {[%emt 0:01:32]} Ndf6 {[%emt 0:01:19]} 14. f3 {[%emt 0:00:23]} Nxc3 {[%emt 0:01:23]} 15. Nxc3 {[%emt 0:00:03]} c5 {[%emt 0:00:52]} 16. Qf2 {[%emt 0:13:40]} Bd7 {[%emt 0:02:13]} 17. e4 {[%emt 0:06:12]} cxd4 {[%emt 0:04:42]} 18. Qxd4 {[%emt 0:00:51]} dxe4 {[%emt 0:01:39]} 19. Nxe4 {[%emt 0:00:41]} Be6 {[%emt 0:05:50]} 20. Nxf6+ {[%emt 0:07:20]} Qxf6 {[%emt 0:00:11]} 21. Qxf6 {[%emt 0:03:53]} 1/2-1/2

[Event "ISR-chT U14 2018"]
[Site "Nir HaEmek"]
[Date "2018.08.13"]
[Round "4"]
[White "Levitan, Ronit"]
[Black "Aizenberg, Benny"]
[Result "1/2-1/2"]
[ECO "B04"]
[WhiteElo "1933"]
[BlackElo "2149"]
[Annotator "NA"]
[PlyCount "55"]
[EventDate "2018.08.12"]
[EventType "team-tourn"]
[EventCountry "ISR"]
[SourceTitle "playchess.com"]
[Source "ChessBase"]
[SourceQuality "1"]
[TimeControl "3060+10"]

1. e4 {[%emt 0:00:52]} Nf6 {[%emt 0:00:51]} 2. e5 {[%emt 0:00:08]} Nd5 {[%emt 0:00:01]} 3. d4 {[%emt 0:00:05]} d6 {[%emt 0:00:01]} 4. Nf3 {[%emt 0:00:06]} dxe5 {[%emt 0:00:08]} 5. Nxe5 {[%emt 0:00:31]} e6 {[%emt 0:00:02]} 6. c3 {[%emt 0:00:35]} Bd6 {[%emt 0:00:04]} 7. Bd3 {[%emt 0:02:43]} O-O {[%emt 0:00:02]} 8. O-O {[%emt 0:00:09]} b6 {[%emt 0:00:32]} 9. Nd2 {[%emt 0:01:48]} Bb7 {[%emt 0:00:23]} 10. Ndf3 {[%emt 0:00:18]} Nd7 {[%emt 0:00:12]} 11. Bc2 {[%emt 0:01:17]} c5 {[%emt 0:00:21]} 12. Nxd7 {[%emt 0:11:25]} Qxd7 {[%emt 0:00:10]} 13. Qd3 {[%emt 0:00:52]} Nf6 {[%emt 0:00:45]} 14. Re1 {[%emt 0:01:27]} Rac8 {[%emt 0:08:26]} 15. Bg5 {[%emt 0:02:44]} c4 {[%emt 0:00:09]} 16. Qe2 {[%emt 0:00:58]} Qb5 {[%emt 0:06:05]} 17. a4 {[%emt 0:13:06]} Qa5 {[%emt 0:02:32]} 18. Bxf6 {[%emt 0:01:05]} gxf6 {[%emt 0:00:03]} 19. Be4 {[%emt 0:00:11]} Bxe4 {[%emt 0:01:50]} 20. Qxe4 {[%emt 0:00:05]} Qh5 {[%emt 0:00:31]} 21. g3 {[%emt 0:03:51]} Kh8 {[%emt 0:00:55]} 22. Nd2 {[%emt 0:01:39]} Rg8 {[%emt 0:00:21]} 23. Qe2 {[%emt 0:00:19]} Qxe2 {[%emt 0:04:28]} 24. Rxe2 {[%emt 0:00:26]} Rgd8 {[%emt 0:00:24]} 25. Ne4 {[%emt 0:00:40]} Be7 {[%emt 0:00:02]} 26. f4 {[%emt 0:00:21]} Rd5 {[%emt 0:00:38]} 27. Nd2 {[%emt 0:02:56]} Ra5 {[%emt 0:00:33]} 28. Ree1 {[%emt 0:00:44]} 1/2-1/2

[Event "ISR-chT U14 2018"]
[Site "Nir HaEmek"]
[Date "2018.08.13"]
[Round "4"]
[White "Guz, Ari"]
[Black "Verny, David"]
[Result "1/2-1/2"]
[ECO "D14"]
[WhiteElo "1921"]
[BlackElo "1946"]
[Annotator "NA"]
[PlyCount "48"]
[EventDate "2018.08.12"]
[EventType "team-tourn"]
[EventCountry "ISR"]
[SourceTitle "playchess.com"]
[Source "ChessBase"]
[SourceQuality "1"]
[TimeControl "3060+10"]

1. d4 {[%emt 0:00:53]} d5 {[%emt 0:00:54]} 2. c4 {[%emt 0:00:06]} c6 {[%emt 0:00:04]} 3. cxd5 {[%emt 0:00:06]} cxd5 {[%emt 0:00:07]} 4. Nc3 {[%emt 0:00:04]} Nc6 {[%emt 0:00:28]} 5. Bf4 {[%emt 0:00:16]} Nf6 {[%emt 0:00:17]} 6. e3 {[%emt 0:00:08]} Bf5 {[%emt 0:00:21]} 7. Bb5 {[%emt 0:00:12]} Rc8 {[%emt 0:00:59]} 8. Nf3 {[%emt 0:00:47]} e6 {[%emt 0:01:12]} 9. Qa4 {[%emt 0:04:17]} Qb6 {[%emt 0:00:59]} 10. O-O {[%emt 0:00:45]} Be7 {[%emt 0:00:23]} 11. Ne5 {[%emt 0:07:51]} O-O {[%emt 0:02:01]} 12. Bxc6 {[%emt 0:03:11]} bxc6 {[%emt 0:00:22]} 13. Qb3 {[%emt 0:03:23]} c5 {[%emt 0:16:09]} 14. Qxb6 {[%emt 0:00:41]} axb6 {[%emt 0:02:50]} 15. Na4 {[%emt 0:00:35]} cxd4 {[%emt 0:00:23]} 16. Nxb6 {[%emt 0:03:41]} Rc2 {[%emt 0:01:37]} 17. exd4 {[%emt 0:04:40]} Rxb2 {[%emt 0:00:36]} 18. Nbd7 {[%emt 0:00:34]} Nxd7 {[%emt 0:00:57]} 19. Nxd7 {[%emt 0:00:02]} Ra8 {[%emt 0:00:42]} 20. Rfc1 {[%emt 0:00:22]} h6 {[%emt 0:02:41]} 21. a4 {[%emt 0:01:40]} Rb7 {[%emt 0:01:58]} 22. Nc5 {[%emt 0:00:42]} Rb4 {[%emt 0:00:21]} 23. Be3 {[%emt 0:00:46] Bxc5Rxc5 [%clk 0:18:59] Rbxa4Rxa4 [%clk 0:19:00] Rxa4 [%clk 0:17:18] h3 [%clk 0:19:08]} Kh7 {[%emt 0:01:51] Kh2 [%clk 0:19:13] Kg6 [%clk 0:15:47] Kg3 [%clk 0:18:32] Bd3 [%clk 0:15:15]} 24. Rc3 {[%emt 0:01:07] Bc4 [%clk 0:13:04] Rc1 [%clk 0:18:09] Kf5 [%clk 0:12:20]} Rb1+ {[%emt 0:00:00] Ra7 [%clk 0:12:02] Rb8 [%clk 0:17:21] f6 [%clk 0:10:41] Kf3 [%clk 0:17:06] Re7 [%clk 0:09:02] Rb6 [%clk 0:17:07] Bd3 [%clk 0:08:53] Rd6 [%clk 0:16:48] Be4+ [%clk 0:08:49] Kg3 [%clk 0:16:47] Rb7 [%clk 0:06:18] Kh2 [%clk 0:16:46] Re7 [%clk 0:04:38] Kg3 [%clk 0:16:47] h5 [%clk 0:04:39] h4 [%clk 0:16:22] Rb7 [%clk 0:04:41] Kh3 [%clk 0:16:00] Bd3 [%clk 0:03:57] Rd8 [%clk 0:14:00] Bc4 [%clk 0:03:44] Rh8 [%clk 0:13:54] Kg6 [%clk 0:03:41] Re8 [%clk 0:13:55] Kf5 [%clk 0:03:49] Rh8 [%clk 0:14:00] g6 [%clk 0:03:55] Rf8 [%clk 0:14:02] e5 [%clk 0:03:46] dxe5 [%clk 0:13:54] Kxe5 [%clk 0:03:55] Re8+ [%clk 0:13:48] Kf5 [%clk 0:04:01] Rf8 [%clk 0:13:36] Rb3 [%clk 0:04:03] Kh2 [%clk 0:13:36] Ke6 [%clk 0:04:05] Bd4 [%clk 0:13:22] Ke5 [%clk 0:00:00]} 1/2-1/2

[Event "ISR-chT U14 2018"]
[Site "Nir HaEmek"]
[Date "2018.08.13"]
[Round "4"]
[White "Friedland, Eldar"]
[Black "Gov, Guy"]
[Result "1-0"]
[ECO "E32"]
[WhiteElo "1876"]
[BlackElo "1834"]
[Annotator "NA"]
[PlyCount "67"]
[EventDate "2018.08.12"]
[EventType "team-tourn"]
[EventCountry "ISR"]
[SourceTitle "playchess.com"]
[Source "ChessBase"]
[SourceQuality "1"]
[TimeControl "3060+10"]

1. d4 {[%emt 0:00:54]} Nf6 {[%emt 0:00:52]} 2. c4 {[%emt 0:00:07]} e6 {[%emt 0:00:01]} 3. Nc3 {[%emt 0:00:07]} Bb4 {[%emt 0:00:02]} 4. Qc2 {[%emt 0:00:07]} b6 {[%emt 0:00:08]} 5. e4 {[%emt 0:01:17]} Bb7 {[%emt 0:00:20]} 6. Bd3 {[%emt 0:00:18]} Bxc3+ {[%emt 0:01:30]} 7. bxc3 {[%emt 0:00:07]} d6 {[%emt 0:00:48]} 8. Bg5 {[%emt 0:00:40]} Nbd7 {[%emt 0:48:39]} 9. Ne2 {[%emt 0:00:44]} c5 {[%emt 0:00:00]} 10. f4 {[%emt 0:02:45]} h6 {[%emt 0:00:00]} 11. Bh4 {[%emt 0:01:14]} Qc7 {[%emt 0:00:00]} 12. e5 {[%emt 0:04:15]} Ng4 {[%emt 0:00:00]} 13. Qd2 {[%emt 0:08:26]} Bxg2 {[%emt 0:00:00]} 14. Rg1 {[%emt 0:00:05]} Nxh2 {[%emt 0:00:00]} 15. O-O-O {[%emt 0:04:01]} Nf3 {[%emt 0:00:00]} 16. Qe3 {[%emt 0:00:05]} Nxh4 {[%emt 0:00:00]} 17. Qg3 {[%emt 0:02:22]} Qd8 {[%emt 0:00:00]} 18. Qxg7 {[%emt 0:04:06]} Rf8 {[%emt 0:00:00]} 19. Rxg2 {[%emt 0:00:09]} Nxg2 {[%emt 0:00:00]} 20. Qxg2 {[%emt 0:00:04]} dxe5 {[%emt 0:00:00]} 21. d5 {[%emt 0:00:43]} exd5 {[%emt 0:02:10]} 22. Qxd5 {[%emt 0:00:05]} Rc8 {[%emt 0:00:00]} 23. Bf5 {[%emt 0:00:42]} Rc7 {[%emt 0:00:00]} 24. Ng3 {[%emt 0:01:04]} Rg8 {[%emt 0:00:00]} 25. Ne4 {[%emt 0:00:11]} Rg7 {[%emt 0:00:21]} 26. Qd6 {[%emt 0:05:06]} f6 {[%emt 0:00:17]} 27. Nxf6+ {[%emt 0:01:45]} Qxf6 {[%emt 0:00:01]} 28. Bxd7+ {[%emt 0:00:18]} Kf7 {[%emt 0:00:01]} 29. Be8+ {[%emt 0:00:23]} Kxe8 {[%emt 0:00:28]} 30. Qxf6 {[%emt 0:00:04]} Rce7 {[%emt 0:00:06]} 31. fxe5 {[%emt 0:00:53]} Rg5 {[%emt 0:00:01]} 32. Qh8+ {[%emt 0:00:49]} Kf7 {[%emt 0:00:01]} 33. Rf1+ {[%emt 0:00:07]} Ke6 {[%emt 0:00:03]} 34. Qxh6+ {[%emt 0:00:17] Kd5 [%clk 0:00:00]} 1-0

[Event "ISR-chT U14 2018"]
[Site "Nir HaEmek"]
[Date "2018.08.13"]
[Round "4"]
[White "Sherman, Reem"]
[Black "Katz, Kiril"]
[Result "*"]
[ECO "A06"]
[WhiteElo "1757"]
[BlackElo "1822"]
[Annotator "NA RC"]
[PlyCount "20"]
[EventDate "2018.08.12"]
[EventType "team-tourn"]
[EventCountry "ISR"]
[SourceTitle "playchess.com"]
[Source "ChessBase"]
[SourceQuality "1"]
[TimeControl "3060+10"]

{[%evp 8,19,0,0,8,-9,0,-12,0,-21,0,-9,-14,-26]} 1. b3 {[%emt 0:01:00]} d5 {[%emt 0:01:06]} 2. Bb2 {[%emt 0:00:09]} Bf5 {[%emt 0:01:19]} 3. e3 {[%emt 0:00:22]} e6 {[%emt 0:00:24]} 4. Nf3 {[%emt 0:00:39]} Nf6 {[%emt 0:00:17]} 5. h3 {[%emt 0:01:45] LiveBook: 13 Games} Bd6 {[%emt 0:00:44]} 6. d4 {[%emt 0:01:39]} Nbd7 {[%emt 0:01:08]} 7. Bd3 {[%emt 0:00:18]} Ne4 {[%emt 0:00:31]} 8. c4 {[%emt 0:00:59]} c6 {[%emt 0:00:12]} 9. c5 {[%emt 0:01:28]} Bc7 {[%emt 0:00:51]} 10. Nc3 $11 {[%emt 0:00:43]} Qf6 {[%emt 0:46:08]} *

[Event "ISR-chT U14 2018"]
[Site "Nir HaEmek"]
[Date "2018.08.13"]
[Round "4"]
[White "Tsirilman, Guy"]
[Black "Sherman, Reem"]
[Result "1/2-1/2"]
[ECO "A06"]
[WhiteElo "1753"]
[BlackElo "1757"]
[Annotator "NA"]
[PlyCount "77"]
[EventDate "2018.08.12"]
[EventType "team-tourn"]
[EventCountry "ISR"]
[SourceTitle "playchess.com"]
[Source "ChessBase"]
[SourceQuality "1"]
[TimeControl "3060+10"]

1. b3 {[%emt 0:01:00]} d5 {[%emt 0:01:06]} 2. Bb2 {[%emt 0:00:09]} Bf5 {[%emt 0:01:19]} 3. e3 {[%emt 0:00:22]} e6 {[%emt 0:00:24]} 4. Nf3 {[%emt 0:00:39]} Nf6 {[%emt 0:00:17]} 5. h3 {[%emt 0:01:45]} Bd6 {[%emt 0:00:44]} 6. d4 {[%emt 0:01:39]} Nbd7 {[%emt 0:01:08]} 7. Bd3 {[%emt 0:00:18]} Ne4 {[%emt 0:00:31]} 8. c4 {[%emt 0:00:59]} c6 {[%emt 0:00:12]} 9. c5 {[%emt 0:01:28]} Bc7 {[%emt 0:00:51]} 10. Nc3 {[%emt 0:00:43]} Qf6 {[%emt 0:03:29]} 11. Qc2 {[%emt 0:00:57]} Ba5 {[%emt 0:00:47]} 12. a3 {[%emt 0:01:47]} Nxc3 {[%emt 0:03:17]} 13. Bxc3 {[%emt 0:00:36]} Bxc3+ {[%emt 0:00:55]} 14. Qxc3 {[%emt 0:00:45]} Bxd3 {[%emt 0:00:09]} 15. Qxd3 {[%emt 0:00:09]} Nxc5 {[%emt 0:00:10]} 16. Qc2 {[%emt 0:01:07]} Ne4 {[%emt 0:00:47]} 17. Ne5 {[%emt 0:00:51]} Rd8 {[%emt 0:00:13]} 18. Rc1 {[%emt 0:03:12]} O-O {[%emt 0:00:53]} 19. Qe2 {[%emt 0:01:02]} Qe7 {[%emt 0:01:44]} 20. O-O {[%emt 0:01:30]} f6 {[%emt 0:00:23]} 21. Nd3 {[%emt 0:00:18]} f5 {[%emt 0:00:25]} 22. Ne5 {[%emt 0:01:03]} Rf6 {[%emt 0:02:03]} 23. Rfd1 {[%emt 0:05:00]} Rdf8 {[%emt 0:02:59]} 24. g3 {[%emt 0:01:05]} Rh6 {[%emt 0:00:41]} 25. Kg2 {[%emt 0:01:02]} Qg5 {[%emt 0:00:44]} 26. Qf3 {[%emt 0:01:40]} Qe7 {[%emt 0:03:23]} 27. h4 {[%emt 0:04:37]} Rhf6 {[%emt 0:06:54]} 28. b4 {[%emt 0:01:05]} a6 {[%emt 0:00:55]} 29. Rc2 {[%emt 0:02:02]} Rc8 {[%emt 0:04:22]} 30. Rb1 {[%emt 0:01:14]} Rff8 {[%emt 0:00:13]} 31. a4 {[%emt 0:01:50]} Rfd8 {[%emt 0:01:39]} 32. Rb3 {[%emt 0:01:44]} Rc7 {[%emt 0:02:15]} 33. Qe2 {[%emt 0:01:02]} Nd6 {[%emt 0:00:49]} 34. Qd1 {[%emt 0:04:07]} Rdc8 {[%emt 0:02:33]} 35. Qc1 {[%emt 0:00:43]} Nf7 {[%emt 0:00:47]} 36. Nxf7 {[%emt 0:01:42]} Kxf7 {[%emt 0:00:05]} 37. f4 {[%emt 0:00:11]} Qd6 {[%emt 0:00:43]} 38. a5 {[%emt 0:01:12]} Rb8 {[%emt 0:00:34]} 39. Rcb2 {[%emt 0:00:52]} 1/2-1/2

[Event "ISR-chT U14 2018"]
[Site "Nir HaEmek"]
[Date "2018.08.13"]
[Round "4"]
[White "Shteiman, Yuval"]
[Black "Katz, Kiril"]
[Result "1-0"]
[ECO "C01"]
[WhiteElo "1584"]
[BlackElo "1822"]
[Annotator "NA"]
[PlyCount "31"]
[EventDate "2018.08.12"]
[EventType "team-tourn"]
[EventCountry "ISR"]
[SourceTitle "playchess.com"]
[Source "ChessBase"]
[SourceQuality "1"]
[TimeControl "3060+10"]

1. e4 {[%emt 0:00:53]} e6 {[%emt 0:00:50]} 2. d4 {[%emt 0:00:10]} d5 {[%emt 0:50:30] Bd3c5 [%clk 0:50:07]} 3. exd5 {[%emt 0:00:03]} Qxd5 {[%emt 0:00:00]} 4. Nc3 {[%emt 0:00:20]} Qd8 {[%emt 0:00:00] dxc5 [%clk 0:49:15] Bxc5 [%clk 0:47:24]} 5. Nf3 {[%emt 0:02:09]} Nc6 {[%emt 0:00:00] O-O [%clk 0:47:20] Nf6 [%clk 0:44:55]} 6. Bg5 {[%emt 0:04:14] O-O [%clk 0:44:46] Qe2 [%clk 0:43:02]} Be7 {[%emt 0:00:00] Rfd1 [%clk 0:36:40] Qb6 [%clk 0:39:26]} 7. Rb1 {[%emt 0:08:26]} a6 {[%emt 0:00:00]} 8. a3 {[%emt 0:02:52]} h6 {[%emt 0:00:00]} 9. Be3 {[%emt 0:03:24] Qc7 [%clk 0:30:35] h3 [%clk 0:25:03]} b6 {[%emt 0:00:00]} 10. Ne4 {[%emt 0:10:53] Nxe4 [%clk 0:21:58] Bxe4 [%clk 0:19:12]} f5 {[%emt 0:00:00] Bxc6 [%clk 0:18:17] Qxc6 [%clk 0:21:29]} 11. Ne5 {[%emt 0:01:17] Qe4 [%clk 0:18:13] Ng6 [%clk 0:15:44] Rf7 [%clk 0:16:05] f3 [%clk 0:12:30] Qc6 [%clk 0:15:51]} Nxe5 {[%emt 0:00:00] Qc7 [%clk 0:15:34] Nxf7 [%clk 0:12:00] Kxf7 [%clk 0:15:43]} 12. Qd3 {[%emt 0:07:31] Qg3 [%clk 0:11:08] Bxb6 [%clk 0:07:45]} Bb7 {[%emt 0:00:00] Bf2 [%clk 0:06:54] Qg6 [%clk 0:11:02] Kh1 [%clk 0:06:32] Qh5 [%clk 0:09:20]} 13. Qb3 {[%emt 0:05:03]} Bc6 {[%emt 0:00:00] Re1 [%clk 0:05:16] Qg6 [%clk 0:06:44]} 14. Qxb6 {[%emt 0:01:15]} Bd5 {[%emt 0:00:00] Bc5 [%clk 0:04:26] Bd8 [%clk 0:05:54]} 15. Qd6 {[%emt 0:00:41]} Bh4 {[%emt 0:00:00] Red1 [%clk 0:03:54] Rd8 [%clk 0:05:30]} 16. Qxc7 {[%emt 0:00:30] Kg8 [%clk 0:05:33] c4 [%clk 0:04:04] Qg3 [%clk 0:04:42] Qxg3 [%clk 0:03:59]} 1-0

[Event "ISR-chT U14 2018"]
[Site "Nir HaEmek"]
[Date "2018.08.14"]
[Round "5"]
[White "Aizenberg, Benny"]
[Black "Gorshtein, Asaf"]
[Result "1/2-1/2"]
[ECO "B13"]
[WhiteElo "2149"]
[BlackElo "2137"]
[Annotator "NA"]
[PlyCount "65"]
[EventDate "2018.08.12"]
[EventType "team-tourn"]
[EventCountry "ISR"]
[SourceTitle "playchess.com"]
[Source "ChessBase"]
[SourceQuality "1"]
[TimeControl "3060+10"]

1. e4 {[%emt 0:00:50]} c6 {[%emt 0:00:55]} 2. d4 {[%emt 0:00:01]} d5 {[%emt 0:00:04]} 3. exd5 {[%emt 0:00:02]} cxd5 {[%emt 0:00:06]} 4. c4 {[%emt 0:00:01]} Nf6 {[%emt 0:00:06]} 5. Nc3 {[%emt 0:00:02]} Nc6 $11 {[%emt 0:00:06] LiveBook: 2875 Partien} 6. Bg5 {[%emt 0:00:08]} Be6 {[%emt 0:04:40]} 7. Nf3 {[%emt 0:00:21]} Ne4 {[%emt 0:03:34]} 8. cxd5 {[%emt 0:02:32]} Bxd5 {[%emt 0:01:18]} 9. Nxe4 {[%emt 0:00:01]} Bxe4 {[%emt 0:00:20]} 10. Bc4 {[%emt 0:00:03]} h6 {[%emt 0:03:52]} 11. Be3 {[%emt 0:02:03]} e6 {[%emt 0:00:42]} 12. O-O {[%emt 0:00:41]} Be7 {[%emt 0:01:23]} 13. Re1 {[%emt 0:20:09]} Bd5 {[%emt 0:02:24]} 14. Bxd5 {[%emt 0:06:28]} Qxd5 {[%emt 0:00:15]} 15. Ne5 {[%emt 0:14:13]} O-O {[%emt 0:16:15]} 16. Qg4 {[%emt 0:01:29]} Kh7 {[%emt 0:00:31]} 17. Rad1 {[%emt 0:00:57]} Rad8 {[%emt 0:02:53]} 18. Nxc6 {[%emt 0:01:11]} Qxc6 {[%emt 0:00:38]} 19. Qh5 {[%emt 0:01:03]} Qd5 {[%emt 0:03:42]} 20. Qxd5 {[%emt 0:00:02]} Rxd5 {[%emt 0:00:09]} 21. Rc1 {[%emt 0:00:01]} Rfd8 {[%emt 0:00:16]} 22. Rc7 {[%emt 0:01:05]} R8d7 {[%emt 0:00:07]} 23. Rxd7 {[%emt 0:00:37]} Rxd7 {[%emt 0:00:05]} 24. b3 {[%emt 0:00:23]} Bf6 {[%emt 0:00:37]} 25. Rd1 {[%emt 0:00:03]} Rc7 {[%emt 0:02:11]} 26. g3 {[%emt 0:00:02]} Rc2 {[%emt 0:00:22]} 27. a4 {[%emt 0:00:03]} Rc3 {[%emt 0:00:26]} 28. d5 {[%emt 0:00:03]} exd5 {[%emt 0:00:38]} 29. Rxd5 {[%emt 0:00:01]} Rxb3 {[%emt 0:02:50]} 30. Bxa7 {[%emt 0:00:02]} b6 {[%emt 0:01:00]} 31. Rd6 {[%emt 0:00:06]} Rb4 {[%emt 0:00:19]} 32. Bxb6 {[%emt 0:00:35]} Rxa4 {[%emt 0:00:02]} 33. Kg2 {[%emt 0:01:12]} 1/2-1/2